fUST/lending_fUST_20250604
["ID","MTS","AMOUNT","RATE_DAILY","PERIOD"]
[364226971,1749045055928,-151.0,0.00022,7]
[364226973,1749045055938,-159.97616,0.00022,7]
[364226975,1749045055947,-4327.7781596,0.00022003,6]
[364226977,1749045055957,-2000.0,0.00022062,2]
[364226979,1749045055966,-500.0,0.00022117,2]
[364226981,1749045055976,-151.0,0.00022141,7]
[364226983,1749045055985,-151.0,0.00022141,7]
[364226985,1749045055996,-1017.2939498,0.00022143,2]
[364226987,1749045056005,-521.43,0.00022191,2]
[364226989,1749045056014,-440.0,0.00022191,2]
[364226991,1749045056024,-151.0,0.00022191,7]
[364226993,1749045056033,-506.52,0.00022191,2]
[364226995,1749045056043,-854.47,0.00022191,2]
[364226997,1749045056055,-454.44,0.00022191,2]
[364226999,1749045056065,-7690.29,0.00022191,2]
[364227001,1749045056075,-1091.39,0.00022191,2]
[364227003,1749045056085,-1759.2,0.00022191,2]
[364227005,1749045056095,-2750.33,0.00022191,2]
[364227007,1749045056105,-587.28,0.00022191,2]
[364227009,1749045056114,-2580.62,0.00022191,2]
[364227010,1749045056124,-618.02,0.00022191,2]
[364227011,1749045056133,-2145.54,0.00022191,2]
[364227012,1749045056143,-151.0,0.00022191,7]
[364227013,1749045056152,-535.64223,0.00022191,7]
[364227014,1749045056162,-751.98,0.00022191,2]
[364227015,1749045056172,-535.64223,0.00022191,7]
[364227016,1749045056182,-4086.22,0.00022191,2]
[364227017,1749045056192,-685.89,0.00022191,2]
[364227018,1749045056203,-654.89,0.00022191,2]
[364227019,1749045056213,-541.02,0.00022191,2]
[364227020,1749045056223,-1063.64,0.00022191,2]
[364227021,1749045056233,-766.02,0.00022191,2]
[364227022,1749045056244,-2193.29,0.00022191,2]
[364227023,1749045056255,-1644.91,0.00022191,2]
[364227024,1749045056264,-2519.12,0.00022191,2]
[364227025,1749045056274,-2410.0,0.000222,7]
[364227026,1749045056283,-4327.7781596,0.00022245,6]
[364227027,1749045056293,-1400.0,0.0002226,2]
[364227028,1749045056305,-5000.0,0.00022278,2]
[364227029,1749045056317,-854.21,0.000223,7]
[364227030,1749045056327,-1017.2939498,0.00022386,2]
[364227031,1749045056336,-151.0,0.00022465,7]
[364227032,1749045056346,-521.43,0.00022465,2]
[364227033,1749045056356,-541.6191698,0.00022465,2]
[364227034,1749045056366,-506.52,0.00022465,2]
[364227035,1749045056375,-854.47,0.00022465,2]
[364227036,1749045056385,-454.44,0.00022465,2]
[364227037,1749045056394,-7690.29,0.00022465,2]
[364227038,1749045056403,-1091.39,0.00022465,2]
[364227039,1749045056412,-151.0,0.00022465,7]
[364227040,1749045056422,-151.0,0.00022465,7]
[364227041,1749045056431,-1759.2,0.00022465,2]
[364227042,1749045056441,-2750.33,0.00022465,2]
[364227043,1749045056451,-587.28,0.00022465,2]
[364227044,1749045056460,-2580.62,0.00022465,2]
[364227045,1749045056469,-618.02,0.00022465,2]
[364227046,1749045056478,-381.709095,0.00022465,7]
[364227047,1749045056488,-381.709095,0.00022465,7]
[364227048,1749045056498,-2145.54,0.00022465,2]
[364227049,1749045056508,-751.98,0.00022465,2]
[364227051,1749045056518,-4086.22,0.00022465,2]
[364227052,1749045056528,-685.89,0.00022465,2]
[364227054,1749045056538,-654.89,0.00022465,2]
[364227055,1749045056547,-541.02,0.00022465,2]
[364227057,1749045056559,-1063.64,0.00022465,2]
[364227059,1749045056569,-766.02,0.00022465,2]
[364227061,1749045056579,-2193.29,0.00022465,2]
[364227063,1749045056589,-504.7392332,0.00022465,2]
[364227065,1749045056600,-1644.91,0.00022465,2]
[364227067,1749045056610,-2519.12,0.00022465,2]
[364227069,1749045056620,-4327.7781596,0.00022486,7]
[364227071,1749045056630,-159.727178,0.000225,7]
[364227073,1749045056639,-159.727178,0.000225,7]
[364227075,1749045056650,-151.0,0.000225,7]
[364227077,1749045056660,-151.0,0.000225,7]
[364227079,1749045056669,-151.0,0.000225,7]
[364227081,1749045056679,-151.0,0.000225,7]
[364227083,1749045056689,-164.926977,0.000225,7]
[364227085,1749045056698,-215.0738,0.00022551,2]
[364227087,1749045056708,-800.0,0.00022601,2]
[364227089,1749045056717,-229.071117,0.00022603,2]
[364227091,1749045056727,-500.0,0.0002261,2]
[364227093,1749045056737,-1017.2939498,0.0002263,2]
[364227095,1749045056747,-4327.7781596,0.00022728,7]
[364227097,1749045056756,-521.59410793,0.00022739,2]
[364227099,1749045056765,-506.75,0.00022739,2]
[364227101,1749045056775,-854.48043,0.00022739,2]
[364227103,1749045056784,-454.67246514,0.00022739,2]
[364227105,1749045056794,-7690.43210416,0.00022739,2]
[364227107,1749045056805,-1091.60845091,0.00022739,2]
[364227109,1749045056813,-1759.22507906,0.00022739,2]
[364227111,1749045056824,-2750.51727493,0.00022739,2]
[364227113,1749045056835,-587.51543342,0.00022739,2]
[364227115,1749045056845,-2580.8173,0.00022739,2]
[364227117,1749045056855,-618.06549035,0.00022739,2]
[364227119,1749045056864,-2145.69074427,0.00022739,2]
[364227121,1749045056875,-752.03,0.00022739,2]
[364227123,1749045056884,-4086.39054259,0.00022739,2]
[364227125,1749045056894,-686.11445303,0.00022739,2]
[364227127,1749045056904,-655.06706493,0.00022739,2]
[364227129,1749045056916,-541.18162718,0.00022739,2]
[364227131,1749045056926,-1063.70840857,0.00022739,2]
[364227133,1749045056936,-766.18870204,0.00022739,2]
[364227135,1749045056946,-2193.33528239,0.00022739,2]
[364227137,1749045056956,-1645.07,0.00022739,2]
[364227139,1749045056966,-2519.29581631,0.00022739,2]
[364227141,1749045056976,-5000.0,0.00022826,2]
[364227143,1749045056985,-600.0,0.00022847,2]
[364227145,1749045056995,-800.0,0.00022848,2]
[364227147,1749045057005,-1017.2939498,0.00022873,2]
[364227149,1749045057014,-800.0,0.0002291,2]
[364227151,1749045057024,-4327.7781596,0.00022969,8]
[364227153,1749045057034,-600.08085784,0.00022998,2]
[364227155,1749045057044,-308.5920414,0.00023068,2]
[364227157,1749045057054,-600.0,0.00023085,2]
[364227159,1749045057063,-1017.2939498,0.00023116,2]
[364227161,1749045057073,-4327.7781596,0.0002321,8]
[364227163,1749045057083,-714.7715287,0.00023233,2]
[364227165,1749045057093,-1007.566783,0.00023318,3]
[364227167,1749045057103,-600.0,0.00023323,2]
[364227169,1749045057112,-4000.0,0.00023333,4]
[364227171,1749045057120,-1400.0,0.00023356,2]
[364227173,1749045057130,-1017.2939498,0.00023359,2]
[364227175,1749045057139,-158.4581234,0.0002337,2]
[364227177,1749045057148,-5000.0,0.00023374,2]
[364227179,1749045057158,-800.0,0.00023392,2]
[364227181,1749045057167,-160.0,0.000234,3]
[364227183,1749045057176,-842.5625,0.000234,3]
[364227185,1749045057186,-423.69433488,0.000234,3]
[364227187,1749045057195,-160.0,0.000234,3]
[364227189,1749045057206,-160.0,0.000234,3]
[364227191,1749045057215,-160.0,0.000234,3]
[364227192,1749045057225,-1152.0,0.00023446,2]
[364227194,1749045057235,-4327.7781596,0.00023452,9]
[364227196,1749045057244,-14202.44910336,0.00023498,2]
[364227227,1749045057539,-3999.98158389,0.00023498,2]
[364227229,1749045057551,-1475.5999992,0.00023498,2]
[364227238,1749045057624,-400.0,0.00016438,2]
[364227240,1749045057637,-40.0,0.00016438,2]
[364227242,1749045057646,-423.69433488,0.00018703,2]
[364227244,1749045057655,-1292.61,0.00019452,2]
[364227247,1749045057666,-1292.61,0.00019726,2]
[364227249,1749045057675,-1292.61,0.0002,2]
[364227251,1749045057684,-438.410998,0.00020273,2]
[364227253,1749045057694,-854.199002,0.00020273,2]
[364227255,1749045057702,-1292.61,0.00020547,2]
[364227257,1749045057711,-215.36742597,0.00020821,2]
[364227259,1749045057725,-710.02361918,0.00020821,2]
[364227266,1749045057771,-367.21895485,0.00020821,2]
[364227268,1749045057781,-1292.61,0.00021095,2]
[364227270,1749045057790,-1292.61,0.00021369,2]
[364227272,1749045057800,-23.42928463,0.00021643,2]
[364227289,1749045057940,-300.0,0.00016437,2]
[364227291,1749045057947,-963.19276571,0.00021643,2]
[364228264,1749045098802,293.12899018,0.00025,30]
[364228268,1749045173357,426.62,0.00025,30]
[364228270,1749045187021,201.95661036,0.00023497,30]
[364228294,1749045691993,168.151219,0.00013699,2]
[364228314,1749046148553,10000.0,0.00025,120]
[364228398,1749046232581,-200.92038346,0.00016238,2]
[364228400,1749046232591,-1305.23655107,0.00016338,2]
[364228402,1749046232601,-235.80842164,0.00016338,2]
[364228404,1749046232611,-189.37215403,0.00016338,2]
[364228406,1749046232620,-1200.0,0.00016435,2]
[364228408,1749046232630,-300.0,0.00016436,2]
[364228409,1749046232640,-300.0,0.00016436,2]
[364228411,1749046232650,-300.0,0.00016436,2]
[364228413,1749046232660,-300.0,0.00016436,2]
[364228415,1749046232669,-300.0,0.00016436,2]
[364228417,1749046232679,-402.98247575,0.00016438,2]
[364228420,1749046232689,-430.0,0.00016438,2]
[364228421,1749046232699,-430.0,0.00016438,2]
[364228423,1749046232708,-440.93682988,0.00016438,2]
[364228425,1749046232718,-440.4221168,0.00016438,2]
[364228427,1749046232727,-440.0,0.00016438,2]
[364228429,1749046232737,-443.0692736,0.00016438,2]
[364228433,1749046232746,-353.39148197,0.00016438,2]
[364228435,1749046232756,-440.0,0.00016438,2]
[364228437,1749046232766,-440.79635233,0.00016438,2]
[364228439,1749046232776,-440.0,0.00016438,2]
[364228441,1749046232785,-440.0,0.00016438,2]
[364228443,1749046232795,-431.18594152,0.00016438,2]
[364228444,1749046232804,-440.0,0.00016438,2]
[364228446,1749046232816,-157.07088979,0.00016438,2]
[364228447,1749046232825,-441.15639271,0.00016438,2]
[364228448,1749046232835,-440.0,0.00016438,2]
[364228450,1749046232845,-440.98441356,0.00016438,2]
[364228452,1749046232855,-440.0,0.00016438,2]
[364228454,1749046232864,-443.46052354,0.00016438,2]
[364228455,1749046232874,-503.09679868,0.00016438,2]
[364228457,1749046232884,-430.0,0.00016438,2]
[364228460,1749046232903,-400.0,0.00016438,2]
[364228462,1749046232915,-431.7982496,0.00016438,2]
[364228464,1749046232925,-430.0,0.00016438,2]
[364228480,1749046233103,-440.0,0.00016438,2]
[364228482,1749046233114,-432.97502321,0.00016438,2]
[364228483,1749046233123,-449.93233988,0.00016438,2]
[364228485,1749046233134,-440.54695167,0.00016438,2]
[364228487,1749046233144,-440.0,0.00016438,2]
[364228489,1749046233153,-441.32488299,0.00016438,2]
[364228491,1749046233163,-432.85651395,0.00016438,2]
[364228492,1749046233172,-430.0,0.00016438,2]
[364228494,1749046233181,-440.0,0.00016438,2]
[364228496,1749046233191,-430.0,0.00016438,2]
[364228498,1749046233201,-440.51336453,0.00016438,2]
[364228500,1749046233212,-430.0,0.00016438,2]
[364228502,1749046233223,-445.22705903,0.00016438,2]
[364228503,1749046233232,-440.0,0.00016438,2]
[364228505,1749046233242,-440.0,0.00016438,2]
[364228507,1749046233252,-440.0,0.00016438,2]
[364228509,1749046233262,-440.0,0.00016438,2]
[364228511,1749046233272,-431.10097417,0.00016438,2]
[364228512,1749046233282,-440.0,0.00016438,2]
[364228514,1749046233291,-440.0,0.00016438,2]
[364228516,1749046233302,-505.62397872,0.00016438,2]
[364228518,1749046233314,-440.0,0.00016438,2]
[364228520,1749046233323,-440.0,0.00016438,2]
[364228522,1749046233333,-440.0,0.00016438,2]
[364228524,1749046233343,-430.0,0.00016438,2]
[364228526,1749046233353,-440.43931324,0.00016438,2]
[364228528,1749046233362,-440.0,0.00016438,2]
[364228530,1749046233372,-505.69506986,0.00016438,2]
[364228532,1749046233381,-440.0,0.00016438,2]
[364228534,1749046233391,-441.10220689,0.00016438,2]
[364228536,1749046233400,-440.0,0.00016438,2]
[364228538,1749046233411,-440.0,0.00016438,2]
[364228540,1749046233420,-588.47147764,0.00016438,2]
[364228542,1749046233430,-440.0,0.00016438,2]
[364228544,1749046233439,-440.0,0.00016438,2]
[364228546,1749046233448,-457.33112025,0.00016438,2]
[364228548,1749046233458,-440.4459311,0.00016438,2]
[364228550,1749046233467,-420.0,0.00016438,2]
[364228552,1749046233477,-436.5171141,0.00016438,2]
[364228554,1749046233486,-440.72484633,0.00016438,2]
[364228556,1749046233495,-440.0,0.00016438,2]
[364228558,1749046233504,-430.0,0.00016438,2]
[364228559,1749046233514,-440.0,0.00016438,2]
[364228560,1749046233523,-430.0,0.00016438,2]
[364228561,1749046233532,-440.0,0.00016438,2]
[364228562,1749046233542,-440.0,0.00016438,2]
[364228563,1749046233551,-440.0,0.00016438,2]
[364228564,1749046233561,-440.0,0.00016438,2]
[364228565,1749046233573,-440.0,0.00016438,2]
[364228566,1749046233583,-440.96682637,0.00016438,2]
[364228567,1749046233592,-430.0,0.00016438,2]
[364228568,1749046233602,-440.0,0.00016438,2]
[364228569,1749046233611,-440.0,0.00016438,2]
[364228570,1749046233621,-440.0,0.00016438,2]
[364228571,1749046233631,-440.0,0.00016438,2]
[364228572,1749046233640,-440.0,0.00016438,2]
[364228573,1749046233650,-440.0,0.00016438,2]
[364228574,1749046233661,-440.0,0.00016438,2]
[364228575,1749046233671,-440.0,0.00016438,2]
[364228576,1749046233681,-430.62405014,0.00016438,2]
[364228577,1749046233690,-440.0,0.00016438,2]
[364228578,1749046233701,-440.0,0.00016438,2]
[364228579,1749046233711,-440.0,0.00016438,2]
[364228580,1749046233720,-440.0,0.00016438,2]
[364228581,1749046233730,-400.0,0.00016438,2]
[364228582,1749046233740,-414.57952046,0.00016438,2]
[364228583,1749046233750,-430.0,0.00016438,2]
[364228584,1749046233760,-376.47491887,0.00016438,2]
[364228585,1749046233770,-430.0,0.00016438,2]
[364228586,1749046233780,-485.16930671,0.00016438,2]
[364228587,1749046233791,-430.0,0.00016438,2]
[364228588,1749046233801,-440.0,0.00016438,2]
[364228589,1749046233811,-440.0,0.00016438,2]
[364228590,1749046233821,-440.0,0.00016438,2]
[364228591,1749046233831,-546.58295513,0.00016438,2]
[364228592,1749046233840,-430.0,0.00016438,2]
[364228593,1749046233851,-432.85568984,0.00016438,2]
[364228594,1749046233861,-440.0,0.00016438,2]
[364228595,1749046233871,-440.0,0.00016438,2]
[364228596,1749046233881,-440.0,0.00016438,2]
[364228597,1749046233890,-430.0,0.00016438,2]
[364228598,1749046233901,-430.0,0.00016438,2]
[364228599,1749046233911,-430.0,0.00016438,2]
[364228600,1749046233922,-290.0,0.00016438,2]
[364228601,1749046233932,-440.0,0.00016438,2]
[364228602,1749046233941,-430.0,0.00016438,2]
[364228603,1749046233951,-440.0,0.00016438,2]
[364228604,1749046233961,-440.0,0.00016438,2]
[364228605,1749046233970,-430.41983581,0.00016438,2]
[364228606,1749046233980,-440.0,0.00016438,2]
[364228607,1749046233990,-497.99699983,0.00016438,2]
[364228608,1749046234000,-290.0,0.00016438,2]
[364228609,1749046234010,-440.0,0.00016438,2]
[364228610,1749046234020,-340.62453092,0.00016438,2]
[364228611,1749046234031,-461.77761851,0.00016438,2]
[364228612,1749046234041,-440.0,0.00016438,2]
[364228613,1749046234050,-430.0,0.00016438,2]
[364228614,1749046234061,-440.0,0.00016438,2]
[364228615,1749046234071,-402.06067736,0.00016438,2]
[364228616,1749046234081,-440.0,0.00016438,2]
[364228617,1749046234091,-430.0,0.00016438,2]
[364228618,1749046234101,-399.16882601,0.00016438,2]
[364228620,1749046234111,-430.0,0.00016438,2]
[364228621,1749046234121,-440.07549382,0.00016438,2]
[364228622,1749046234131,-430.0,0.00016438,2]
[364228623,1749046234141,-430.0,0.00016438,2]
[364228624,1749046234151,-440.0,0.00016438,2]
[364228626,1749046234161,-440.0,0.00016438,2]
[364228627,1749046234171,-440.0,0.00016438,2]
[364228628,1749046234181,-440.0,0.00016438,2]
[364228630,1749046234190,-430.0,0.00016438,2]
[364228631,1749046234201,-440.0,0.00016438,2]
[364228633,1749046234211,-440.0,0.00016438,2]
[364228635,1749046234223,-401.34935453,0.00016438,2]
[364228637,1749046234234,-433.08403681,0.00016438,2]
[364228639,1749046234244,-440.0,0.00016438,2]
[364228641,1749046234255,-440.0,0.00016438,2]
[364228643,1749046234265,-436.13064833,0.00016438,2]
[364228645,1749046234275,-440.0,0.00016438,2]
[364228647,1749046234285,-440.0,0.00016438,2]
[364228649,1749046234294,-440.0,0.00016438,2]
[364228651,1749046234306,-404.28590609,0.00016438,2]
[364228653,1749046234318,-430.0,0.00016438,2]
[364228655,1749046234328,-510.84554866,0.00016438,2]
[364228657,1749046234338,-440.0,0.00016438,2]
[364228659,1749046234347,-440.0,0.00016438,2]
[364228661,1749046234357,-430.0,0.00016438,2]
[364228663,1749046234367,-433.1227896,0.00016438,2]
[364228665,1749046234376,-440.0,0.00016438,2]
[364228667,1749046234386,-341.91479569,0.00016438,2]
[364228669,1749046234397,-440.0,0.00016438,2]
[364228671,1749046234407,-403.92090289,0.00016438,2]
[364228674,1749046234417,-188.80009099,0.00016438,2]
[364228676,1749046234427,-431.28673321,0.00016438,2]
[364228678,1749046234438,-440.0,0.00016438,2]
[364228680,1749046234447,-440.0,0.00016438,2]
[364228682,1749046234457,-430.0,0.00016438,2]
[364228684,1749046234466,-430.0,0.00016438,2]
[364228686,1749046234476,-430.0,0.00016438,2]
[364228688,1749046234486,-188.0,0.00016438,2]
[364228690,1749046234496,-430.0,0.00016438,2]
[364228692,1749046234506,-432.2265561,0.00016438,2]
[364228694,1749046234516,-430.0,0.00016438,2]
[364228696,1749046234526,-440.89159324,0.00016438,2]
[364228697,1749046234536,-440.0,0.00016438,2]
[364228699,1749046234546,-430.0,0.00016438,2]
[364228702,1749046234556,-430.0,0.00016438,2]
[364228704,1749046234568,-430.0,0.00016438,2]
[364228705,1749046234578,-430.0,0.00016438,2]
[364228707,1749046234587,-440.0,0.00016438,2]
[364228709,1749046234596,-440.0,0.00016438,2]
[364228711,1749046234605,-517.15437129,0.00016438,2]
[364228713,1749046234615,-430.0,0.00016438,2]
[364228715,1749046234625,-430.0,0.00016438,2]
[364228717,1749046234635,-430.0,0.00016438,2]
[364228719,1749046234645,-440.0,0.00016438,2]
[364228721,1749046234655,-430.0,0.00016438,2]
[364228723,1749046234667,-430.0,0.00016438,2]
[364228725,1749046234678,-440.0,0.00016438,2]
[364228727,1749046234690,-440.0,0.00016438,2]
[364228729,1749046234700,-440.0,0.00016438,2]
[364228731,1749046234710,-440.0,0.00016438,2]
[364228733,1749046234721,-500.0,0.00016438,2]
[364228735,1749046234731,-432.06353269,0.00016438,2]
[364228737,1749046234741,-440.0,0.00016438,2]
[364228739,1749046234751,-430.0,0.00016438,2]
[364228741,1749046234761,-454.34861304,0.00016438,2]
[364228744,1749046234771,-440.0,0.00016438,2]
[364228746,1749046234781,-430.0,0.00016438,2]
[364228748,1749046234790,-440.0,0.00016438,2]
[364228750,1749046234803,-440.0,0.00016438,2]
[364228752,1749046234814,-440.0,0.00016438,2]
[364228754,1749046234824,-453.01216864,0.00016438,2]
[364228756,1749046234834,-500.0,0.00016438,2]
[364228758,1749046234844,-500.0,0.00016438,2]
[364228760,1749046234854,-500.0,0.00016438,2]
[364228762,1749046234864,-502.28829755,0.00016438,2]
[364228764,1749046234874,-450.0,0.00016438,2]
[364228766,1749046234884,-440.0,0.00016438,2]
[364228768,1749046234893,-430.0,0.00016438,2]
[364228770,1749046234902,-440.0,0.00016438,2]
[364228772,1749046234914,-430.0,0.00016438,2]
[364228774,1749046234924,-430.0,0.00016438,2]
[364228776,1749046234934,-248.99506919,0.00016438,2]
[364228778,1749046234944,-440.0,0.00016438,2]
[364228780,1749046234954,-440.0,0.00016438,2]
[364228782,1749046234963,-430.0,0.00016438,2]
[364228784,1749046234973,-440.0,0.00016438,2]
[364228786,1749046234983,-440.0,0.00016438,2]
[364228788,1749046234992,-440.0,0.00016438,2]
[364228790,1749046235002,-245.10365391,0.00016438,2]
[364228792,1749046235012,-430.0,0.00016438,2]
[364228794,1749046235021,-411.76600262,0.00016438,2]
[364228796,1749046235031,-440.0,0.00016438,2]
[364228798,1749046235041,-403.09172572,0.00016438,2]
[364228800,1749046235050,-440.0,0.00016438,2]
[364228801,1749046235061,-440.0,0.00016438,2]
[364228803,1749046235071,-440.0,0.00016438,2]
[364228806,1749046235081,-440.0,0.00016438,2]
[364228807,1749046235091,-430.0,0.00016438,2]
[364228808,1749046235100,-507.65222703,0.00016438,2]
[364228810,1749046235110,-440.0,0.00016438,2]
[364228812,1749046235119,-440.0,0.00016438,2]
[364228814,1749046235129,-409.94680605,0.00016438,2]
[364228816,1749046235139,-440.0,0.00016438,2]
[364228818,1749046235148,-440.0,0.00016438,2]
[364228819,1749046235158,-536.35,0.00016438,2]
[364228820,1749046235167,-440.0,0.00016438,2]
[364228821,1749046235177,-446.95521307,0.00016438,2]
[364228822,1749046235187,-440.0,0.00016438,2]
[364228823,1749046235197,-440.0,0.00016438,2]
[364228824,1749046235207,-440.0,0.00016438,2]
[364228825,1749046235218,-430.0,0.00016438,2]
[364228826,1749046235230,-430.0,0.00016438,2]
[364228827,1749046235239,-440.0,0.00016438,2]
[364228828,1749046235249,-430.0,0.00016438,2]
[364228829,1749046235259,-440.0,0.00016438,2]
[364228830,1749046235270,-518.15329318,0.00016438,2]
[364228831,1749046235279,-496.32463457,0.00016438,2]
[364228832,1749046235289,-459.82174323,0.00016438,2]
[364228833,1749046235299,-430.0,0.00016438,2]
[364228834,1749046235308,-440.0,0.00016438,2]
[364228835,1749046235319,-440.0,0.00016438,2]
[364228836,1749046235329,-430.0,0.00016438,2]
[364228837,1749046235339,-452.04228063,0.00016438,2]
[364228838,1749046235348,-440.0,0.00016438,2]
[364228839,1749046235359,-440.0,0.00016438,2]
[364228840,1749046235368,-440.0,0.00016438,2]
[364228841,1749046235378,-438.62704701,0.00016438,2]
[364228842,1749046235388,-440.0,0.00016438,2]
[364228843,1749046235502,-508.37655584,0.00016438,2]
[364228844,1749046235512,-440.0,0.00016438,2]
[364228845,1749046235522,-440.0,0.00016438,2]
[364228846,1749046235532,-430.0,0.00016438,2]
[364228847,1749046235542,-440.0,0.00016438,2]
[364228848,1749046235552,-440.0,0.00016438,2]
[364228849,1749046235563,-440.0,0.00016438,2]
[364228850,1749046235573,-362.76763648,0.00016438,2]
[364228851,1749046235583,-430.0,0.00016438,2]
[364228852,1749046235593,-430.0,0.00016438,2]
[364228853,1749046235603,-430.0,0.00016438,2]
[364228854,1749046235612,-440.0,0.00016438,2]
[364228855,1749046235622,-440.0,0.00016438,2]
[364228856,1749046235631,-440.0,0.00016438,2]
[364228857,1749046235641,-440.0,0.00016438,2]
[364228858,1749046235650,-440.0,0.00016438,2]
[364228859,1749046235660,-440.0,0.00016438,2]
[364228860,1749046235669,-1000.0,0.00016438,2]
[364228861,1749046235679,-441.82620392,0.00016438,2]
[364228862,1749046235688,-440.0,0.00016438,2]
[364228863,1749046235697,-300.42586271,0.00016438,2]
[364228864,1749046235707,-433.37834558,0.00016438,2]
[364228865,1749046235717,-440.0,0.00016438,2]
[364228866,1749046235726,-500.0,0.00016438,2]
[364228867,1749046235735,-440.0,0.00016438,2]
[364228868,1749046235744,-440.0,0.00016438,2]
[364228869,1749046235754,-430.0,0.00016438,2]
[364228870,1749046235763,-440.0,0.00016438,2]
[364228871,1749046235771,-440.0,0.00016438,2]
[364228872,1749046235781,-440.0,0.00016438,2]
[364228873,1749046235790,-440.0,0.00016438,2]
[364228874,1749046235800,-430.0,0.00016438,2]
[364228875,1749046235810,-440.0,0.00016438,2]
[364228876,1749046235821,-430.0,0.00016438,2]
[364228877,1749046235831,-431.36396874,0.00016438,2]
[364228878,1749046235840,-440.0,0.00016438,2]
[364228879,1749046235850,-440.0,0.00016438,2]
[364228880,1749046235859,-440.0,0.00016438,2]
[364228881,1749046235869,-440.0,0.00016438,2]
[364228882,1749046235879,-440.0,0.00016438,2]
[364228883,1749046235888,-440.0,0.00016438,2]
[364228884,1749046235897,-440.0,0.00016438,2]
[364228885,1749046235907,-440.0,0.00016438,2]
[364228886,1749046235917,-440.0,0.00016438,2]
[364228887,1749046235926,-440.0,0.00016438,2]
[364228888,1749046235936,-500.0,0.00016438,2]
[364228889,1749046235945,-440.0,0.00016438,2]
[364228890,1749046235954,-440.0,0.00016438,2]
[364228891,1749046235964,-340.91848827,0.00016438,2]
[364228892,1749046235974,-440.0,0.00016438,2]
[364228893,1749046235983,-440.0,0.00016438,2]
[364228894,1749046235993,-440.0,0.00016438,2]
[364228895,1749046236004,-402.26377488,0.00016438,2]
[364228896,1749046236014,-430.0,0.00016438,2]
[364228897,1749046236023,-440.0,0.00016438,2]
[364228898,1749046236033,-440.0,0.00016438,2]
[364228899,1749046236043,-440.0,0.00016438,2]
[364228900,1749046236052,-440.0,0.00016438,2]
[364228901,1749046236064,-504.95294135,0.00016438,2]
[364228902,1749046236073,-440.0,0.00016438,2]
[364228903,1749046236083,-443.8867048,0.00016438,2]
[364228904,1749046236093,-440.0,0.00016438,2]
[364228905,1749046236103,-440.0,0.00016438,2]
[364228906,1749046236112,-440.0,0.00016438,2]
[364228907,1749046236122,-402.69527002,0.00016438,2]
[364228908,1749046236132,-440.0,0.00016438,2]
[364228909,1749046236141,-527.48804138,0.00016438,2]
[364228910,1749046236151,-440.0,0.00016438,2]
[364228911,1749046236161,-440.0,0.00016438,2]
[364228912,1749046236171,-440.0,0.00016438,2]
[364228913,1749046236180,-373.37349176,0.00016438,2]
[364228914,1749046236190,-557.23827995,0.00016438,2]
[364228915,1749046236199,-430.0,0.00016438,2]
[364228916,1749046236208,-440.0,0.00016438,2]
[364228917,1749046236219,-430.43238152,0.00016438,2]
[364228918,1749046236232,-545.55,0.00016438,2]